[Event "RUS-ch Rapid 2021"]
[Site "Sochi"]
[Date "2021.10.13"]
[Round "9.24"]
[White "Nesterov, Arseniy"]
[Black "Grebnev, Aleksey"]
[Result "1/2-1/2"]
[ECO "E73"]
[WhiteElo "2514"]
[BlackElo "2469"]
[Annotator "ChessBase"]
[PlyCount "115"]
[EventDate "2021.10.12"]
[EventType "swiss"]
[EventCountry "RUS"]
[SourceTitle "playchess.com"]
[Source "ChessBase"]
[SourceQuality "1"]
[TimeControl "900+10"]

1. d4 {[%emt 0:00:00]} Nf6 {[%emt 0:00:04]} 2. c4 {[%emt 0:00:06]} g6 {[%emt 0:
00:07]} 3. Nc3 {[%emt 0:00:00]} Bg7 {[%emt 0:00:00]} 4. e4 {[%emt 0:00:03]} d6
{[%emt 0:00:08]} 5. Be2 {[%emt 0:00:00]} O-O {[%emt 0:00:00]} 6. Be3 {[%emt 0:
00:00]} Na6 {[%emt 0:00:00]} 7. h4 {[%emt 0:00:11]} h5 {[%emt 0:00:00]} 8. f3 {
[%emt 0:00:11]} e5 {[%emt 0:00:06]} 9. d5 {[%emt 0:00:00]} c6 {[%emt 0:00:36]}
10. Qd2 {[%emt 0:00:18]} Bd7 {[%emt 0:00:27]} 11. Nh3 {[%emt 0:00:05]} cxd5 {
[%emt 0:01:49]} 12. cxd5 {[%emt 0:00:06]} Ne8 {[%emt 0:00:30]} 13. Nf2 {
[%emt 0:01:41]} f5 {[%emt 0:00:09]} 14. exf5 {[%emt 0:00:31]} gxf5 {[%emt 0:00:
04]} 15. f4 {[%emt 0:00:04]} Nf6 {[%emt 0:00:31]} 16. O-O {[%emt 0:00:52]} Ng4
{[%emt 0:01:00]} 17. Nxg4 {[%emt 0:00:04]} hxg4 {[%emt 0:00:11]} 18. g3 {
[%emt 0:00:13]} e4 {[%emt 0:00:00]} 19. Bxa6 {[%emt 0:01:10]} bxa6 {[%emt 0:00:
00]} 20. Rfc1 {[%emt 0:00:00]} Qb8 {[%emt 0:01:15]} 21. Rc2 {[%emt 0:01:16]}
Rc8 {[%emt 0:00:33]} 22. Rac1 {[%emt 0:00:17]} Qb4 {[%emt 0:00:53]} 23. Nd1 {
[%emt 0:00:43]} Qb7 {[%emt 0:01:01]} 24. Rxc8+ {[%emt 0:00:30]} Rxc8 {[%emt 0:
00:01]} 25. Rxc8+ {[%emt 0:00:04]} Bxc8 {[%emt 0:00:14]} 26. Nc3 {[%emt 0:00:
34]} Qb4 {[%emt 0:00:19]} 27. Bxa7 {[%emt 0:00:35]} Bb7 {[%emt 0:00:32]} 28. a3
{[%emt 0:00:25]} Qc4 {[%emt 0:01:29]} 29. Kf2 {[%emt 0:01:20]} a5 {[%emt 0:01:
44]} 30. Be3 {[%emt 0:03:36]} Kf7 {[%emt 0:02:26]} 31. Qe2 {[%emt 0:01:21]}
Bxd5 {[%emt 0:00:00]} 32. Qxc4 {[%emt 0:00:20]} Bxc4 {[%emt 0:00:01]} 33. Bb6 {
[%emt 0:00:10]} d5 {[%emt 0:01:31]} 34. Ke3 {[%emt 0:00:00]} Bxc3 {[%emt 0:02:
08]} 35. bxc3 {[%emt 0:00:00]} a4 {[%emt 0:00:00]} 36. Kd4 {[%emt 0:00:00]} Ke6
{[%emt 0:00:09]} 37. Bc5 {[%emt 0:00:16]} Bb3 {[%emt 0:00:27]} 38. h5 {[%emt 0:
00:37]} Kf6 {[%emt 0:00:02]} 39. h6 {[%emt 0:01:45]} e3 {[%emt 0:00:26]} 40.
Kxe3 {[%emt 0:00:23]} Bc2 {[%emt 0:00:07]} 41. Kd4 {[%emt 0:00:36]} Be4 {
[%emt 0:00:04]} 42. Bf8 {[%emt 0:00:13]} Kg6 {[%emt 0:00:00]} 43. Ke5 {[%emt 0:
00:05]} Kh7 {[%emt 0:00:00]} 44. Kf6 {[%emt 0:00:05]} Bd3 {[%emt 0:00:07]} 45.
Bg7 {[%emt 0:00:17]} Be4 {[%emt 0:00:00]} 46. Ke6 {[%emt 0:00:02]} Kg8 {
[%emt 0:00:04]} 47. Bf6 {[%emt 0:00:29]} Kh7 {[%emt 0:00:04]} 48. Bg5 {[%emt 0:
00:00]} Kg8 {[%emt 0:00:00]} 49. Ke5 {[%emt 0:00:02]} Kh7 {[%emt 0:00:07]} 50.
Kf6 {[%emt 0:00:00]} Bd3 {[%emt 0:00:02]} 51. Ke7 {[%emt 0:00:05]} Be4 {
[%emt 0:00:03]} 52. Kd6 {[%emt 0:00:02]} Kg8 {[%emt 0:00:10]} 53. Kc5 {[%emt 0:
00:02]} Kh7 {[%emt 0:00:00]} 54. Kb5 {[%emt 0:00:02]} Bc2 {[%emt 0:00:00]} 55.
Kb4 {[%emt 0:00:04]} Kg8 {[%emt 0:00:01]} 56. Bf6 {[%emt 0:00:05]} Kh7 {
[%emt 0:00:03]} 57. Bg7 {[%emt 0:00:11]} Kg8 {[%emt 0:00:01]} 58. Kc5 {[%emt 0:
00:10]} 1/2-1/2

[Event "RUS-ch Rapid 2021"]
[Site "Sochi"]
[Date "2021.10.13"]
[Round "10.1"]
[White "Tsydypov, Zhamsaran"]
[Black "Moiseenko, Vadim"]
[Result "1-0"]
[ECO "A53"]
[WhiteElo "2526"]
[BlackElo "2542"]
[Annotator "ChessBase"]
[PlyCount "93"]
[EventDate "2021.10.12"]
[EventType "swiss"]
[EventCountry "RUS"]
[SourceTitle "playchess.com"]
[Source "ChessBase"]
[SourceQuality "1"]
[TimeControl "900+10"]

1. d4 {[%emt 0:01:00]} Nf6 {[%emt 0:00:22]} 2. c4 {[%emt 0:00:05]} d6 {[%emt 0:
00:07]} 3. Nc3 {[%emt 0:00:11]} Bf5 {[%emt 0:00:03]} 4. g3 {[%emt 0:00:15]} c6
{[%emt 0:00:15]} 5. Bg2 {[%emt 0:00:03]} Nbd7 {[%emt 0:00:15]} 6. e4 {[%emt 0:
00:14]} Bg6 {[%emt 0:00:06]} 7. Nge2 {[%emt 0:00:06]} e5 {[%emt 0:00:00]} 8.
O-O {[%emt 0:00:06]} Be7 {[%emt 0:00:00]} 9. h3 {[%emt 0:00:18]} O-O {[%emt 0:
00:19]} 10. Be3 {[%emt 0:00:49]} Re8 {[%emt 0:00:08]} 11. f4 {[%emt 0:00:23]}
h6 {[%emt 0:00:00]} 12. g4 {[%emt 0:01:15]} Bf8 {[%emt 0:01:08]} 13. Ng3 {
[%emt 0:00:24]} exf4 {[%emt 0:01:31]} 14. Bxf4 {[%emt 0:00:56]} b5 {[%emt 0:00:
01]} 15. cxb5 {[%emt 0:00:43]} cxb5 {[%emt 0:00:00]} 16. a3 {[%emt 0:01:40]}
Qb6 {[%emt 0:00:39]} 17. h4 {[%emt 0:00:55]} Rac8 {[%emt 0:02:03]} 18. g5 {
[%emt 0:00:05]} hxg5 {[%emt 0:00:03]} 19. hxg5 {[%emt 0:00:00]} Rxc3 {[%emt 0:
00:15]} 20. bxc3 {[%emt 0:00:30]} Nxe4 {[%emt 0:00:02]} 21. Nxe4 {[%emt 0:00:
59]} Bxe4 {[%emt 0:00:00]} 22. Bxe4 {[%emt 0:00:59]} Rxe4 {[%emt 0:00:03]} 23.
g6 {[%emt 0:00:20]} Nf6 {[%emt 0:03:37]} 24. gxf7+ {[%emt 0:00:04]} Kxf7 {
[%emt 0:00:00]} 25. Bg5 {[%emt 0:00:05]} Re5 {[%emt 0:01:33]} 26. Qh5+ {
[%emt 0:00:49]} Ke6 {[%emt 0:01:40]} 27. Qg6 {[%emt 0:01:43]} Be7 {[%emt 0:01:
04]} 28. Qxg7 {[%emt 0:00:37]} Nd5 {[%emt 0:00:42]} 29. Bxe7 {[%emt 0:01:23]}
Nxe7 {[%emt 0:00:00]} 30. Rae1 {[%emt 0:00:55]} Kd7 {[%emt 0:00:06]} 31. Rxe5 {
[%emt 0:00:17]} dxe5 {[%emt 0:00:00]} 32. Rf6 {[%emt 0:00:11]} Qc7 {[%emt 0:00:
46]} 33. Qg4+ {[%emt 0:00:06]} Ke8 {[%emt 0:00:04]} 34. Qh5+ {[%emt 0:00:00]}
Kd7 {[%emt 0:00:03]} 35. Qxe5 {[%emt 0:00:36]} Qxc3 {[%emt 0:00:44]} 36. Qxb5+
{[%emt 0:00:40]} Kc7 {[%emt 0:00:16]} 37. Qe5+ {[%emt 0:00:08]} Kd7 {[%emt 0:
00:00]} 38. Rd6+ {[%emt 0:00:50]} Kc8 {[%emt 0:00:04]} 39. Qxe7 {[%emt 0:00:11]
} Qg3+ {[%emt 0:00:25]} 40. Kf1 {[%emt 0:00:00]} Qf3+ {[%emt 0:00:23]} 41. Ke1
{[%emt 0:00:05]} Qg3+ {[%emt 0:00:36]} 42. Kd2 {[%emt 0:00:11]} Qf2+ {[%emt 0:
00:49]} 43. Kc3 {[%emt 0:00:15]} Qf3+ {[%emt 0:00:17]} 44. Kc4 {[%emt 0:00:20]}
Qf1+ {[%emt 0:00:03]} 45. Kd5 {[%emt 0:00:05]} Qb5+ {[%emt 0:00:05]} 46. Ke6 {
[%emt 0:00:05]} Qe2+ {[%emt 0:00:09]} 47. Kf6 {[%emt 0:00:05]} 1-0

[Event "RUS-ch Rapid 2021"]
[Site "Sochi"]
[Date "2021.10.13"]
[Round "10.4"]
[White "Lysyj, Igor"]
[Black "Bocharov, Dmitry"]
[Result "0-1"]
[ECO "E19"]
[WhiteElo "2603"]
[BlackElo "2517"]
[Annotator "RC"]
[PlyCount "74"]
[EventDate "2021.10.12"]
[EventType "swiss"]
[EventCountry "RUS"]
[SourceTitle "playchess.com"]
[Source "ChessBase"]
[SourceQuality "1"]
[TimeControl "900+10"]

1. d4 {[%emt 0:00:00]} Nf6 {[%emt 0:00:04]} 2. c4 {[%emt 0:00:02]} e6 {[%emt 0:
00:04]} 3. Nf3 {[%emt 0:00:11]} b6 {[%emt 0:01:04]} 4. g3 {[%emt 0:00:00]} Bb7
{[%emt 0:00:08]} 5. Bg2 {[%emt 0:00:00]} Be7 {[%emt 0:00:05]} 6. O-O {[%emt 0:
00:00]} O-O {[%emt 0:00:02]} 7. Nc3 {[%emt 0:00:02]} Ne4 {[%emt 0:00:32]} 8.
Qc2 {[%emt 0:00:00]} Nxc3 {[%emt 0:00:16]} 9. Qxc3 {[%emt 0:00:00]} Bf6 {
[%emt 0:00:16]} 10. Qd3 {[%emt 0:00:15]} d5 {[%emt 0:01:12]} 11. cxd5 {[%emt 0:
00:20]} exd5 {[%emt 0:00:00]} 12. Be3 {[%emt 0:00:14]} a5 {[%emt 0:02:04]} 13.
Rac1 {[%emt 0:01:26]} Na6 {[%emt 0:00:00]} 14. a3 {[%emt 0:01:14]} Re8 {
[%emt 0:00:07]} 15. Qb5 {[%emt 0:00:40]} c6 {[%emt 0:02:05]} 16. Qb3 {[%emt 0:
00:00]} h6 {[%emt 0:01:36]} 17. Rc2 {[%emt 0:00:49]} Ra7 {[%emt 0:02:10]} 18.
Rfc1 {[%emt 0:00:26]} c5 {[%emt 0:01:01]} 19. dxc5 {[%emt 0:00:48]} Nxc5 {
[%emt 0:00:15]} 20. Bxc5 {[%emt 0:04:11]} bxc5 {[%emt 0:00:03]} 21. Rxc5 {
[%emt 0:00:11]} Rxe2 {[%emt 0:00:22]} 22. R5c2 {[%emt 0:01:29]} Rxc2 {[%emt 0:
00:17]} 23. Qxc2 {[%emt 0:00:28]} Ra8 {[%emt 0:00:17]} 24. Qd2 {[%emt 0:00:17]}
a4 {[%emt 0:01:00]} 25. h4 {[%emt 0:01:05]} Qb6 {[%emt 0:00:08]} 26. Ne1 {
[%emt 0:00:07]} Re8 {[%emt 0:00:43]} 27. Nd3 {[%emt 0:00:13]} Ba6 {[%emt 0:00:
38]} 28. Rd1 {[%emt 0:01:45]} Bc4 {[%emt 0:00:34]} 29. Nb4 {[%emt 0:01:28]} Re2
{[%emt 0:00:56]} 30. Qf4 {[%emt 0:00:00]} Be5 {[%emt 0:00:43]} 31. Qf3 {
[%emt 0:00:51]} Bd4 {[%emt 0:00:38]} 32. Nxd5 {[%emt 0:00:39]} Qxb2 {[%emt 0:
00:15]} 33. Qg4 {[%emt 0:00:50]} Bxf2+ {[%emt 0:00:21]} 34. Kh1 {[%emt 0:00:00]
} Bxd5 {[%emt 0:00:22]} 35. Qc8+ {[%emt 0:00:26]} Kh7 {[%emt 0:00:02]} 36. Bxd5
{[%emt 0:00:00]} Qe5 {[%emt 0:00:32]} 37. Qg4 {[%emt 0:00:24]} f5 {[%emt 0:00:
06]} 0-1

[Event "RUS-ch Rapid 2021"]
[Site "Sochi"]
[Date "2021.10.13"]
[Round "10.5"]
[White "Sarana, Alexey"]
[Black "Timofeev, Artyom"]
[Result "1-0"]
[ECO "D27"]
[WhiteElo "2649"]
[BlackElo "2586"]
[Annotator "RC"]
[PlyCount "94"]
[EventDate "2021.10.12"]
[EventType "swiss"]
[EventCountry "RUS"]
[SourceTitle "playchess.com"]
[Source "ChessBase"]
[SourceQuality "1"]
[TimeControl "900+10"]

1. d4 {[%emt 0:00:00]} d5 {[%emt 0:00:04]} 2. Nf3 {[%emt 0:00:09]} Nf6 {
[%emt 0:00:17]} 3. c4 {[%emt 0:00:00]} dxc4 {[%emt 0:00:00]} 4. e3 {[%emt 0:00:
27]} e6 {[%emt 0:00:00]} 5. Bxc4 {[%emt 0:00:06]} c5 {[%emt 0:00:02]} 6. O-O {
[%emt 0:00:00]} a6 {[%emt 0:00:00]} 7. dxc5 {[%emt 0:00:35]} Bxc5 {[%emt 0:00:
00]} 8. Qxd8+ {[%emt 0:00:07]} Kxd8 {[%emt 0:00:00]} 9. Nfd2 {[%emt 0:00:00]}
Ke7 {[%emt 0:00:22]} 10. Be2 {[%emt 0:00:00]} Bd7 {[%emt 0:00:36]} 11. Nb3 {
[%emt 0:00:28]} Bd6 {[%emt 0:00:21]} 12. f3 {[%emt 0:00:18]} Nd5 {[%emt 0:01:
20]} 13. Rd1 {[%emt 0:00:38]} Bc7 {[%emt 0:00:59]} 14. Nc3 {[%emt 0:00:47]} Bc6
{[%emt 0:01:31]} 15. Nd4 {[%emt 0:02:33]} Nxc3 {[%emt 0:00:10]} 16. bxc3 {
[%emt 0:00:08]} Rc8 {[%emt 0:00:00]} 17. Ba3+ {[%emt 0:00:07]} Ke8 {[%emt 0:00:
04]} 18. Rab1 {[%emt 0:00:10]} Ba4 {[%emt 0:00:58]} 19. Rdc1 {[%emt 0:00:55]}
b6 {[%emt 0:00:42]} 20. Bd3 {[%emt 0:01:19]} Nd7 {[%emt 0:00:51]} 21. Be4 {
[%emt 0:02:51]} Rab8 {[%emt 0:00:15]} 22. Rb4 {[%emt 0:01:22]} b5 {[%emt 0:00:
05]} 23. Rbb1 {[%emt 0:01:18]} Bb6 {[%emt 0:02:54]} 24. Bd6 {[%emt 0:00:00]}
Bc7 {[%emt 0:00:01]} 25. Ba3 {[%emt 0:00:07]} Bb6 {[%emt 0:00:01]} 26. Bd6 {
[%emt 0:00:51]} Bc7 {[%emt 0:00:00]} 27. Bb4 {[%emt 0:00:00]} Bb6 {[%emt 0:00:
00]} 28. Kf2 {[%emt 0:02:43]} Bc5 {[%emt 0:00:38]} 29. Ke2 {[%emt 0:00:26]} Rc7
{[%emt 0:00:55]} 30. Bc6 {[%emt 0:00:23]} Bxd4 {[%emt 0:01:32]} 31. cxd4 {
[%emt 0:00:07]} Rbc8 {[%emt 0:00:00]} 32. Bxd7+ {[%emt 0:00:15]} Kxd7 {[%emt 0:
00:01]} 33. Bc5 {[%emt 0:00:00]} a5 {[%emt 0:00:24]} 34. a3 {[%emt 0:00:00]} e5
{[%emt 0:00:00]} 35. Kd3 {[%emt 0:00:01]} exd4 {[%emt 0:00:14]} 36. exd4 {
[%emt 0:00:00]} Re8 {[%emt 0:00:31]} 37. Re1 {[%emt 0:01:26]} Rcc8 {[%emt 0:00:
35]} 38. Re4 {[%emt 0:00:13]} f5 {[%emt 0:00:14]} 39. Rxe8 {[%emt 0:00:40]}
Rxe8 {[%emt 0:00:00]} 40. Rb2 {[%emt 0:00:09]} Kc6 {[%emt 0:00:12]} 41. Re2 {
[%emt 0:00:11]} Rxe2 {[%emt 0:00:11]} 42. Kxe2 {[%emt 0:00:00]} Kd5 {[%emt 0:
00:21]} 43. Kd3 {[%emt 0:00:10]} Bb3 {[%emt 0:00:10]} 44. Kc3 {[%emt 0:00:00]}
Bc4 {[%emt 0:00:04]} 45. Bb6 {[%emt 0:00:00]} a4 {[%emt 0:00:32]} 46. g3 {
[%emt 0:00:17]} Be2 {[%emt 0:00:00]} 47. f4 {[%emt 0:00:00]} g6 {[%emt 0:00:23]
} 1-0

[Event "RUS-ch Rapid 2021"]
[Site "Sochi"]
[Date "2021.10.13"]
[Round "10.6"]
[White "Riazantsev, Alexander"]
[Black "Belozerov, Andrei"]
[Result "1/2-1/2"]
[ECO "D27"]
[WhiteElo "2634"]
[BlackElo "2476"]
[Annotator "RC"]
[PlyCount "120"]
[EventDate "2021.10.12"]
[EventType "swiss"]
[EventCountry "RUS"]
[SourceTitle "playchess.com"]
[Source "ChessBase"]
[SourceQuality "1"]
[TimeControl "900+10"]

1. d4 {[%emt 0:00:00]} d5 {[%emt 0:00:10]} 2. c4 {[%emt 0:00:02]} c6 {[%emt 0:
00:00]} 3. Nc3 {[%emt 0:00:11]} Nf6 {[%emt 0:00:01]} 4. e3 {[%emt 0:00:00]} e6
{[%emt 0:00:31]} 5. Bd3 {[%emt 0:00:05]} dxc4 {[%emt 0:00:49]} 6. Bxc4 {
[%emt 0:00:02]} c5 {[%emt 0:00:10]} 7. Nf3 {[%emt 0:00:32]} a6 {[%emt 0:00:20]}
8. O-O {[%emt 0:00:59]} b5 {[%emt 0:00:03]} 9. Be2 {[%emt 0:00:05]} Bb7 {
[%emt 0:00:00]} 10. dxc5 {[%emt 0:00:03]} Bxc5 {[%emt 0:01:12]} 11. Qxd8+ {
[%emt 0:00:17]} Kxd8 {[%emt 0:00:06]} 12. Nd2 {[%emt 0:00:19]} Ke7 {[%emt 0:03:
52]} 13. Nb3 {[%emt 0:00:01]} Bb4 {[%emt 0:01:13]} 14. a4 {[%emt 0:00:44]} bxa4
{[%emt 0:00:23]} 15. Nxa4 {[%emt 0:02:54]} Nbd7 {[%emt 0:00:30]} 16. f3 {
[%emt 0:00:53]} Rhc8 {[%emt 0:01:15]} 17. e4 {[%emt 0:00:16]} a5 {[%emt 0:01:
37]} 18. Be3 {[%emt 0:02:13]} Ba6 {[%emt 0:00:06]} 19. Bxa6 {[%emt 0:00:55]}
Rxa6 {[%emt 0:00:00]} 20. Nd4 {[%emt 0:00:00]} Ne5 {[%emt 0:03:06]} 21. Rfc1 {
[%emt 0:01:23]} Raa8 {[%emt 0:00:25]} 22. Nb6 {[%emt 0:00:36]} Rxc1+ {[%emt 0:
00:00]} 23. Rxc1 {[%emt 0:00:00]} Ra6 {[%emt 0:00:40]} 24. Rc7+ {[%emt 0:01:58]
} Kd8 {[%emt 0:00:02]} 25. Rc8+ {[%emt 0:00:59]} Ke7 {[%emt 0:00:04]} 26. Nc6+
{[%emt 0:02:02]} Nxc6 {[%emt 0:00:26]} 27. Rxc6 {[%emt 0:00:02]} Ke8 {[%emt 0:
00:19]} 28. Rc8+ {[%emt 0:00:04]} Ke7 {[%emt 0:00:06]} 29. Rc7+ {[%emt 0:00:04]
} Ke8 {[%emt 0:00:14]} 30. Rb7 {[%emt 0:00:13]} Bd6 {[%emt 0:00:41]} 31. Nc4 {
[%emt 0:01:56]} Nd7 {[%emt 0:00:18]} 32. Bd4 {[%emt 0:00:22]} f6 {[%emt 0:00:
50]} 33. Nxd6+ {[%emt 0:00:02]} Rxd6 {[%emt 0:00:00]} 34. Bc3 {[%emt 0:00:00]}
Ra6 {[%emt 0:00:25]} 35. Kf2 {[%emt 0:00:07]} a4 {[%emt 0:00:00]} 36. Bb4 {
[%emt 0:00:23]} Rc6 {[%emt 0:00:43]} 37. Ba3 {[%emt 0:00:01]} Rc2+ {[%emt 0:00:
00]} 38. Kg3 {[%emt 0:00:01]} g5 {[%emt 0:00:09]} 39. Ra7 {[%emt 0:00:06]} h5 {
[%emt 0:00:27]} 40. h4 {[%emt 0:00:02]} gxh4+ {[%emt 0:00:14]} 41. Kh3 {
[%emt 0:00:00]} Rc4 {[%emt 0:00:04]} 42. Kxh4 {[%emt 0:00:00]} Rc2 {[%emt 0:00:
00]} 43. Kg3 {[%emt 0:00:45]} Rc4 {[%emt 0:00:11]} 44. Kh3 {[%emt 0:00:21]} Rd4
{[%emt 0:00:21]} 45. Kh4 {[%emt 0:00:18]} Rd2 {[%emt 0:00:03]} 46. Kg3 {
[%emt 0:00:03]} Rd4 {[%emt 0:00:03]} 47. Kf4 {[%emt 0:00:12]} Rd2 {[%emt 0:00:
02]} 48. Kg3 {[%emt 0:00:14]} Rd4 {[%emt 0:00:02]} 49. Kh4 {[%emt 0:00:22]} Rd2
{[%emt 0:00:01]} 50. Rxa4 {[%emt 0:00:10]} Rxg2 {[%emt 0:00:03]} 51. Kxh5 {
[%emt 0:00:08]} Ne5 {[%emt 0:00:10]} 52. Ra8+ {[%emt 0:00:04]} Kf7 {[%emt 0:00:
03]} 53. Ra7+ {[%emt 0:00:10]} Kg8 {[%emt 0:00:02]} 54. Ra8+ {[%emt 0:00:09]}
Kg7 {[%emt 0:00:05]} 55. Ra7+ {[%emt 0:00:06]} Kg8 {[%emt 0:00:05]} 56. Ra8+ {
[%emt 0:00:04]} Kg7 {[%emt 0:00:10]} 57. Ra7+ {[%emt 0:00:00]} Kg8 {[%emt 0:00:
02]} 58. Ra8+ {[%emt 0:00:32]} Kg7 {[%emt 0:00:00]} 59. Ra7+ {[%emt 0:00:00]}
Kg8 {[%emt 0:00:00]} 60. Ra8+ {[%emt 0:00:05]} Kg7 {[%emt 0:00:02]} 1/2-1/2

[Event "RUS-ch Rapid 2021"]
[Site "Sochi"]
[Date "2021.10.13"]
[Round "10.7"]
[White "Dreev, Aleksey"]
[Black "Popov, Valerij"]
[Result "1/2-1/2"]
[ECO "E04"]
[WhiteElo "2635"]
[BlackElo "2537"]
[Annotator "RC"]
[PlyCount "117"]
[EventDate "2021.10.12"]
[EventType "swiss"]
[EventCountry "RUS"]
[SourceTitle "playchess.com"]
[Source "ChessBase"]
[SourceQuality "1"]
[TimeControl "900+10"]

1. d4 {[%emt 0:00:00]} d5 {[%emt 0:00:04]} 2. Nf3 {[%emt 0:00:11]} Nf6 {
[%emt 0:00:02]} 3. c4 {[%emt 0:00:00]} e6 {[%emt 0:00:03]} 4. Nc3 {[%emt 0:00:
14]} c6 {[%emt 0:00:11]} 5. g3 {[%emt 0:00:09]} dxc4 {[%emt 0:00:27]} 6. Bg2 {
[%emt 0:00:01]} b5 {[%emt 0:00:05]} 7. Ne5 {[%emt 0:00:16]} Nd5 {[%emt 0:00:24]
} 8. a4 {[%emt 0:00:29]} f6 {[%emt 0:00:35]} 9. Nf3 {[%emt 0:00:56]} Bb7 {
[%emt 0:00:54]} 10. O-O {[%emt 0:01:13]} Nd7 {[%emt 0:00:28]} 11. Bh3 {[%emt 0:
02:12]} Kf7 {[%emt 0:01:02]} 12. Ne4 {[%emt 0:00:25]} Be7 {[%emt 0:00:52]} 13.
Bd2 {[%emt 0:00:50]} a5 {[%emt 0:02:44]} 14. b3 {[%emt 0:00:28]} cxb3 {[%emt 0:
00:06]} 15. Qxb3 {[%emt 0:00:06]} b4 {[%emt 0:00:18]} 16. Rac1 {[%emt 0:03:48]}
Qb6 {[%emt 0:00:37]} 17. Neg5+ {[%emt 0:01:32]} fxg5 {[%emt 0:00:27]} 18. e4 {
[%emt 0:00:00]} Nc7 {[%emt 0:01:44]} 19. Bxg5 {[%emt 0:01:14]} Rhe8 {[%emt 0:
01:17]} 20. Be3 {[%emt 0:00:59]} Rad8 {[%emt 0:00:55]} 21. Rfd1 {[%emt 0:01:35]
} c5 {[%emt 0:02:45]} 22. Bf4 {[%emt 0:01:23]} Bf6 {[%emt 0:00:42]} 23. Nd2 {
[%emt 0:00:08]} Qc6 {[%emt 0:00:52]} 24. Nc4 {[%emt 0:00:09]} Nb6 {[%emt 0:00:
01]} 25. Nxa5 {[%emt 0:00:46]} Qxe4 {[%emt 0:00:11]} 26. Nxb7 {[%emt 0:00:01]}
Qxb7 {[%emt 0:00:00]} 27. dxc5 {[%emt 0:00:05]} Nbd5 {[%emt 0:00:08]} 28. Bd6 {
[%emt 0:00:01]} Qc6 {[%emt 0:00:13]} 29. Bg2 {[%emt 0:00:26]} Bc3 {[%emt 0:00:
23]} 30. Rd3 {[%emt 0:00:11]} Kg8 {[%emt 0:00:05]} 31. Rcd1 {[%emt 0:00:00]}
Kh8 {[%emt 0:00:01]} 32. f4 {[%emt 0:00:17]} g6 {[%emt 0:00:25]} 33. h4 {
[%emt 0:00:01]} Ra8 {[%emt 0:00:16]} 34. h5 {[%emt 0:00:27]} Qxa4 {[%emt 0:00:
16]} 35. Qc4 {[%emt 0:00:03]} Qa2 {[%emt 0:00:24]} 36. Qe4 {[%emt 0:00:07]} Nf6
{[%emt 0:00:10]} 37. Be5 {[%emt 0:00:12]} Ncd5 {[%emt 0:00:17]} 38. h6 {
[%emt 0:00:12]} Qa7 {[%emt 0:00:09]} 39. Qc4 {[%emt 0:00:08]} Rac8 {[%emt 0:00:
23]} 40. Rxc3 {[%emt 0:00:06]} bxc3 {[%emt 0:00:10]} 41. Bxd5 {[%emt 0:00:00]}
exd5 {[%emt 0:00:05]} 42. Bxf6+ {[%emt 0:00:03]} Kg8 {[%emt 0:00:00]} 43. Qxd5+
{[%emt 0:00:09]} Qf7 {[%emt 0:00:03]} 44. Bxc3 {[%emt 0:00:09]} Qxd5 {[%emt 0:
00:22]} 45. Rxd5 {[%emt 0:00:00]} Re3 {[%emt 0:00:02]} 46. Bd4 {[%emt 0:00:52]}
Rxg3+ {[%emt 0:00:01]} 47. Kh2 {[%emt 0:00:00]} Rd3 {[%emt 0:00:13]} 48. Kg2 {
[%emt 0:00:14]} Ra8 {[%emt 0:00:09]} 49. Kf2 {[%emt 0:00:08]} Ra2+ {[%emt 0:00:
12]} 50. Ke1 {[%emt 0:00:00]} Rad2 {[%emt 0:00:05]} 51. c6 {[%emt 0:00:10]}
Rxd4 {[%emt 0:00:02]} 52. c7 {[%emt 0:00:02]} Rxd5 {[%emt 0:00:51]} 53. c8=Q+ {
[%emt 0:00:01]} Kf7 {[%emt 0:00:14]} 54. Qh8 {[%emt 0:00:03]} Rd1+ {[%emt 0:00:
19]} 55. Ke2 {[%emt 0:00:00]} R5d2+ {[%emt 0:00:14]} 56. Ke3 {[%emt 0:00:15]}
Rd3+ {[%emt 0:00:01]} 57. Ke4 {[%emt 0:00:07]} Rd4+ {[%emt 0:00:00]} 58. Ke3 {
[%emt 0:00:31]} R1d3+ {[%emt 0:00:00]} 59. Ke2 {[%emt 0:00:03]} 1/2-1/2

[Event "RUS-ch Rapid 2021"]
[Site "Sochi"]
[Date "2021.10.13"]
[Round "10.8"]
[White "Petrov, Nikita"]
[Black "Kokarev, Dmitry"]
[Result "1-0"]
[ECO "E94"]
[WhiteElo "2539"]
[BlackElo "2579"]
[Annotator "ChessBase"]
[PlyCount "69"]
[EventDate "2021.10.12"]
[EventType "swiss"]
[EventCountry "RUS"]
[SourceTitle "playchess.com"]
[Source "ChessBase"]
[SourceQuality "1"]
[TimeControl "900+10"]

1. d4 {[%emt 0:00:00]} Nf6 {[%emt 0:00:00]} 2. c4 {[%emt 0:00:00]} g6 {[%emt 0:
00:00]} 3. Nc3 {[%emt 0:00:06]} Bg7 {[%emt 0:00:04]} 4. e4 {[%emt 0:00:04]} d6
{[%emt 0:00:01]} 5. Nf3 {[%emt 0:00:00]} O-O {[%emt 0:00:06]} 6. Be2 {[%emt 0:
00:00]} e5 {[%emt 0:00:08]} 7. O-O {[%emt 0:00:00]} c6 {[%emt 0:00:00]} 8. Re1
{[%emt 0:00:33]} exd4 {[%emt 0:00:14]} 9. Nxd4 {[%emt 0:00:03]} Re8 {[%emt 0:
00:02]} 10. f3 {[%emt 0:03:18]} d5 {[%emt 0:00:05]} 11. cxd5 {[%emt 0:03:12]}
cxd5 {[%emt 0:00:17]} 12. Bg5 {[%emt 0:02:45]} Qb6 {[%emt 0:00:42]} 13. Kh1 {
[%emt 0:00:17]} dxe4 {[%emt 0:00:15]} 14. Ndb5 {[%emt 0:01:43]} Rd8 {[%emt 0:
03:28]} 15. Qc1 {[%emt 0:00:00]} a6 {[%emt 0:02:41]} 16. Be3 {[%emt 0:01:40]}
Qc6 {[%emt 0:00:00]} 17. Na7 {[%emt 0:00:40]} Qe6 {[%emt 0:00:48]} 18. Nxe4 {
[%emt 0:00:57]} Nxe4 {[%emt 0:00:08]} 19. fxe4 {[%emt 0:00:00]} Bd7 {[%emt 0:
00:32]} 20. Bc4 {[%emt 0:00:16]} Qe8 {[%emt 0:00:26]} 21. Bb6 {[%emt 0:00:31]}
Rxa7 {[%emt 0:01:55]} 22. Bxa7 {[%emt 0:00:00]} Nc6 {[%emt 0:00:02]} 23. Bb6 {
[%emt 0:00:40]} Rc8 {[%emt 0:00:00]} 24. Qd2 {[%emt 0:00:04]} Ne5 {[%emt 0:00:
10]} 25. Bd5 {[%emt 0:00:06]} Bb5 {[%emt 0:01:53]} 26. Rac1 {[%emt 0:00:50]} h5
{[%emt 0:00:35]} 27. Rxc8 {[%emt 0:00:16]} Qxc8 {[%emt 0:00:00]} 28. Rc1 {
[%emt 0:00:02]} Qg4 {[%emt 0:00:22]} 29. h3 {[%emt 0:00:11]} Qh4 {[%emt 0:00:
06]} 30. Qf2 {[%emt 0:00:27]} Qg5 {[%emt 0:00:23]} 31. Rc7 {[%emt 0:00:10]} Kh7
{[%emt 0:01:08]} 32. Bd4 {[%emt 0:00:14]} Be8 {[%emt 0:00:35]} 33. Bxf7 {
[%emt 0:00:47]} Qd8 {[%emt 0:01:29]} 34. Bxe5 {[%emt 0:00:42]} Bxe5 {[%emt 0:
00:01]} 35. Bxg6+ {[%emt 0:00:13]} 1-0